bitfinex/quotes_ETHUSD_20250810
["timestamp","ask_amount","ask_price","bid_price","bid_amount"]
[1754848936706,2.5438876,4224.4,4224.3,1e-08]
[1754848936933,6.1658876,4224.4,4224.3,1e-08]
[1754848937677,2.5438876,4224.4,4224.3,1e-08]
[1754848938019,6.1648876,4224.4,4224.3,0.83740001]
[1754848938379,6.1648876,4224.4,4224.3,0.45280001]
[1754848938574,6.1648876,4224.4,4224.3,0.57120001]
[1754848940381,3.79768753,4224.4,4224.3,0.95580001]
[1754848940580,0.17668753,4224.4,4224.3,0.95580001]
[1754848940882,3.622,4224.8,4224.3,1.28811802]
[1754848941101,3.622,4224.8,4224.7,0.1184]
[1754848941303,3.622,4224.9,4224.7,0.9558]
[1754848941592,3.622,4224.9,4224.8,0.4528]
[1754848942108,5.98891992,4224.9,4224.8,0.4528]
[1754848942607,3.622,4224.9,4224.8,0.4528]
[1754848942807,5.98891992,4224.9,4224.8,0.4528]
[1754848943320,5.98891992,4224.9,4224.7,0.1184]
[1754848944519,3.622,4224.9,4224.7,0.1184]
[1754848944724,3.62,4225.0,4224.7,0.5712]
[1754848944922,2.36686855,4225.0,4224.7,0.5712]
[1754848945094,5.98681652,4225.1,4224.7,0.5712]
[1754848945294,3.62,4225.1,4224.8,0.4528]
[1754848945504,3.62,4225.1,4225.0,0.1184]
[1754848946225,0.002,4225.3,4225.0,0.1184]
[1754848946434,0.002,4225.3,4225.0,0.5712]
[1754848946435,3.619,4225.2,4225.0,0.5712]
[1754848947626,3.619,4225.2,4225.0,0.1184]
[1754848953052,0.002,4225.3,4225.0,0.5712]
[1754848955522,0.002,4225.3,4225.0,0.1184]
[1754848958431,2.36680788,4225.1,4225.0,0.1184]
[1754848958749,6.90380788,4225.1,4225.0,0.1184]
[1754848959564,6.90380788,4225.1,4224.3,1e-08]
[1754848959565,2.36713367,4224.6,4224.3,1e-08]
[1754848959754,5.98013367,4224.6,4224.5,0.1184]
[1754848959923,6.90413367,4224.6,4224.5,0.1184]
[1754848961355,2.36720007,4224.4,4224.3,1e-08]
[1754848961554,5.98120007,4224.4,4224.3,0.11840001]
[1754848961933,6.90520007,4224.4,4224.3,1e-08]
[1754848962136,10.79406851,4224.4,4224.3,1e-08]
[1754848962360,12.20289991,4224.4,4224.3,1e-08]
[1754848962528,8.43243147,4224.4,4224.3,1e-08]
[1754848962857,7.02360007,4224.4,4224.3,1e-08]
[1754848963159,6.90520007,4224.4,4224.3,1e-08]
[1754848966130,2.3668745,4225.0,4224.3,1e-08]
[1754848966131,0.924,4225.0,4224.3,1e-08]
[1754848966331,3.619,4224.9,4224.3,0.11840001]
[1754848966636,2.36720007,4224.4,4224.3,0.11840001]
[1754848966841,5.98520007,4224.4,4224.3,0.11840001]
[1754848967452,6.46000007,4224.4,4224.3,0.11840001]
[1754848967847,5.98520007,4224.4,4224.3,0.11840001]
[1754848969740,4.318,4224.4,4224.3,0.11840001]
[1754848971264,0.7,4224.4,4224.3,0.59280001]
[1754848971839,0.7,4224.4,4224.3,0.92727659]
[1754848972650,0.7,4224.4,4224.3,0.45287659]
[1754848973675,0.7,4224.4,4224.3,0.11840001]
[1754848982774,4.03720007,4224.4,4224.3,0.11840001]
[1754848984265,4.03720007,4224.4,4224.3,1e-08]
[1754848987397,6.68220007,4224.4,4224.3,1e-08]
[1754848987763,6.68220007,4224.4,4224.3,0.11840001]
[1754848988059,7.65220007,4224.4,4224.3,0.11840001]
[1754848990981,7.65420007,4224.4,4224.3,0.11840001]
[1754848994700,6.68420007,4224.4,4224.3,0.11840001]
[1754848997277,7.65420007,4224.4,4224.3,0.11840001]
[1754848998416,6.68420007,4224.4,4224.3,0.11840001]
[1754848999285,7.60380007,4224.4,4224.3,0.11840001]
[1754849001045,6.68420007,4224.4,4224.3,0.11840001]
[1754849001250,6.67920007,4224.4,4224.3,0.11840001]
[1754849003646,0.702,4224.4,4224.3,0.55670001]
[1754849003844,0.002,4224.4,4224.3,0.55670001]
[1754849004012,0.002,4224.4,4224.3,0.11840001]
[1754849004858,0.002,4224.4,4224.3,0.55670001]
[1754849005012,0.002,4224.4,4224.3,0.11840001]
[1754849013439,6.89380007,4224.4,4224.3,0.11840001]
[1754849015867,7.81989282,4224.4,4224.3,1e-08]
[1754849016245,7.81989282,4224.4,4224.3,0.11840001]
[1754849017357,5.97420007,4224.4,4224.3,0.11840001]
[1754849017555,5.98020007,4224.4,4224.3,0.11840001]
[1754849017965,3.613,4224.4,4224.3,0.11840001]
[1754849020077,0.002,4224.4,4224.3,0.11840001]
[1754849029660,0.002,4224.4,4224.3,0.56670001]
[1754849029861,0.002,4224.4,4224.3,3.31855612]
[1754849030091,0.002,4224.4,4224.3,4.24774637]
[1754849030257,0.002,4224.4,4224.3,7.24774637]
[1754849030986,0.002,4224.4,4224.3,7.79774637]
[1754849038298,0.002,4224.4,4224.3,7.41314637]
[1754849040700,0.002,4224.4,4224.3,6.96484637]
[1754849041204,0.002,4224.4,4224.3,10.56584637]
[1754849045002,0.002,4224.4,4224.3,10.56384637]
[1754849047003,0.002,4224.4,4224.3,6.96484637]
[1754849047305,0.002,4224.4,4224.3,10.56384637]
[1754849047883,0.002,4224.4,4224.3,6.96484637]
[1754849048081,0.002,4224.4,4224.3,10.56384637]
[1754849048810,0.002,4224.4,4224.3,6.96484637]
[1754849049011,0.002,4224.4,4224.3,0.11840001]
[1754849049012,0.9339,4224.4,4224.3,0.11840001]
[1754849049180,3.30110007,4224.4,4224.3,1e-08]
[1754849059088,3.30110007,4224.4,4224.3,0.11840001]
[1754849061387,0.002,4224.4,4224.3,0.11840001]
[1754849062210,0.002,4224.4,4224.3,2.48565612]
[1754849062822,0.002,4224.4,4224.3,3.2709566]
[1754849064007,0.002,4224.4,4224.3,4.0977566]
[1754849064833,0.002,4224.4,4224.3,7.0977566]
[1754849065591,0.002,4224.4,4224.3,6.7131566]
[1754849065795,0.002,4224.4,4224.3,6.2709566]
[1754849065995,0.002,4224.4,4224.3,9.8679566]
[1754849066811,0.002,4224.4,4224.3,10.3101566]
[1754849070043,0.002,4224.4,4224.3,10.3091566]
[1754849070527,0.002,4224.4,4224.3,10.6937566]
[1754849071616,0.002,4224.4,4224.3,10.3091566]
[1754849071819,0.002,4224.4,4224.3,10.6937566]
[1754849072332,0.002,4224.4,4224.3,10.3091566]
[1754849075727,0.002,4224.4,4224.3,9.8669566]
[1754849089741,0.002,4225.2,4224.4,5.91720007]
[1754849089967,0.002,4225.2,4225.1,2.36680788]
[1754849090154,0.002,4225.2,4225.1,9.08120788]
[1754849090771,0.002,4225.2,4225.1,9.51280788]
[1754849091077,1e-08,4225.3,4225.2,5.91675186]
[1754849091279,1e-08,4225.3,4225.2,6.74075186]
[1754849091440,1e-08,4225.3,4225.2,8.03242283]
[1754849091642,1e-08,4225.3,4225.2,8.12716683]
[1754849094780,0.002,4226.1,4226.0,5.91630383]
[1754849095069,0.002,4226.1,4226.0,9.51130383]
[1754849095263,0.002,4226.1,4226.0,9.62970383]
[1754849095460,0.002,4226.1,4226.0,11.20635914]
[1754849100283,0.002,4226.1,4226.0,11.20535914]
[1754849100482,0.002,4226.1,4226.0,11.30009114]
[1754849102288,0.002,4226.1,4226.0,7.70609114]
[1754849102699,0.002,4227.1,4227.0,6.68621246]
[1754849102909,0.002,4227.1,4227.0,13.40261246]
[1754849103258,0.002,4227.1,4227.0,13.93671446]
[1754849104295,0.002,4227.1,4227.0,14.32131446]
[1754849104561,0.002,4227.1,4227.0,15.16602782]
[1754849105584,0.002,4227.1,4227.0,15.60542782]
[1754849106766,0.002,4227.1,4227.0,7.79755938]
[1754849106968,0.9313,4227.1,4227.0,7.24755938]
[1754849107200,0.9313,4227.1,4227.0,9.17484602]
[1754849107403,0.9313,4227.1,4227.0,9.72484602]
[1754849108186,0.9313,4227.1,4227.0,6.12884602]
[1754849108592,0.9313,4227.1,4227.0,9.72584602]
[1754849109471,0.9313,4227.1,4227.0,6.12884602]
[1754849109672,0.9313,4227.1,4227.0,10.57531253]
[1754849110395,0.9313,4227.1,4227.0,10.57431253]
[1754849111266,0.002,4227.1,4227.0,10.57431253]
[1754849113434,0.002,4227.1,4227.0,6.97831253]
[1754849113699,0.002,4227.1,4227.0,10.57431253]
[1754849115105,0.002,4227.1,4227.0,6.97831253]
[1754849115273,0.002,4227.1,4227.0,10.57431253]
[1754849116991,1e-08,4227.1,4227.0,11.01371253]
[1754849117303,1e-08,4227.2,4227.1,5.91568806]
[1754849117495,1e-08,4227.2,4227.1,7.52867003]
[1754849117677,1e-08,4227.2,4227.1,7.99517003]
[1754849118376,1e-08,4227.2,4227.1,11.76563847]
[1754849118812,0.002,4227.7,4227.1,11.76563847]
[1754849118813,1e-08,4227.7,4227.6,0.55]
[1754849118994,1e-08,4227.7,4227.6,9.62880826]
[1754849119288,1e-08,4227.7,4227.6,11.29473551]
[1754849120311,1e-08,4228.1,4228.0,3.55]
[1754849120473,1e-08,4228.1,4228.0,9.62858448]
[1754849120869,1e-08,4228.1,4228.0,10.09508448]
[1754849121108,1e-08,4228.4,4228.3,2.91501667]
[1754849121310,1e-08,4228.4,4228.3,9.51001667]
[1754849121514,1e-08,4228.4,4228.3,9.62841667]
[1754849121880,1e-08,4228.4,4228.3,10.09491667]
[1754849122094,1e-08,4228.4,4228.3,9.62841667]
[1754849122290,1e-08,4228.4,4228.3,11.78420151]
[1754849122902,1e-08,4228.4,4228.3,11.39960151]
[1754849124194,1e-08,4228.4,4228.3,10.93310151]
[1754849124380,1e-08,4228.4,4228.3,7.33810151]
[1754849124578,1e-08,4228.4,4228.3,6.66970151]
[1754849124579,0.92500001,4228.4,4228.3,6.66970151]
[1754849124774,0.92500001,4228.4,4228.3,2.36501667]
[1754849125015,0.92500001,4228.4,4228.3,9.51201667]
[1754849131324,1e-08,4228.4,4228.3,9.51201667]
[1754849131830,1e-08,4228.4,4228.3,13.28248511]
[1754849132809,1e-08,4228.4,4228.3,14.13358511]
[1754849133116,1e-08,4228.4,4228.3,15.79292037]
[1754849134984,1e-08,4228.4,4228.3,15.91132037]
[1754849136420,1e-08,4228.4,4228.3,10.73675193]
[1754849136621,1e-08,4228.4,4228.3,7.14275193]
[1754849136622,0.92500001,4228.4,4228.3,7.14275193]
[1754849136997,0.92500001,4228.4,4228.3,10.73775193]
[1754849137319,0.92500001,4228.4,4228.3,7.73775193]
[1754849137537,0.92500001,4228.4,4228.3,10.73775193]
[1754849138106,0.92500001,4228.4,4228.3,11.28775193]
[1754849138631,0.042,4228.9,4228.4,5.91496074]
[1754849138828,0.042,4228.9,4228.8,3.55]
[1754849139055,0.925,4230.4,4228.8,10.94011581]
[1754849139229,0.965,4229.9,4229.5,0.55]
[1754849139405,0.965,4229.9,4229.7,0.55]
[1754849139602,0.04,4229.9,4229.8,7.149]
[1754849139908,0.5112,4229.9,4229.8,8.1639]
[1754849140453,0.002,4231.0,4230.0,0.55]
[1754849140731,0.002,4231.0,4230.8,2.36361917]
[1754849140914,0.002,4231.0,4230.8,5.96161917]
[1754849142457,0.965,4230.9,4230.8,5.96161917]
[1754849143430,0.965,4230.9,4230.8,3.598]
[1754849144410,0.965,4230.9,4230.8,5.96161917]
[1754849145110,0.965,4230.9,4230.8,2.36361917]
[1754849145631,0.965,4230.9,4230.8,5.96061917]
[1754849146444,0.965,4230.9,4230.8,2.36361917]
[1754849146655,0.965,4230.9,4230.8,5.95961917]
[1754849147948,0.965,4230.9,4230.8,2.36361917]
[1754849148114,0.965,4230.9,4230.8,5.95961917]
[1754849148947,0.915,4230.9,4230.8,5.95961917]
[1754849149140,0.915,4230.9,4230.8,6.07801917]
[1754849150545,0.002,4231.0,4230.9,2.3635633]
[1754849151348,0.4684,4231.0,4230.9,2.3635633]
[1754849151519,0.9157,4231.0,4230.9,2.3635633]
[1754849151948,0.9157,4231.0,4230.9,5.9575633]
[1754849152159,0.9157,4231.0,4230.9,3.594]
[1754849152327,0.9157,4231.0,4230.9,5.9575633]
[1754849154150,0.9157,4231.0,4230.9,3.594]
[1754849154350,0.9157,4231.0,4230.9,3.593]
[1754849156356,0.9157,4231.0,4230.8,0.1184]
[1754849156532,0.9137,4230.9,4230.8,0.1184]
[1754849160961,0.002,4231.0,4230.8,2.48200538]
[1754849161166,0.002,4231.0,4230.9,3.592]
[1754849161377,0.002,4231.0,4230.9,7.12657043]
[1754849161672,0.002,4231.0,4230.9,6.68137043]
[1754849162555,0.002,4231.0,4230.9,7.12657043]
[1754849163173,0.002,4231.0,4230.9,7.60537043]
[1754849164155,0.002,4231.0,4230.9,7.12657043]
[1754849164338,0.002,4231.0,4230.9,7.60537043]
[1754849164734,0.002,4231.0,4230.9,7.22120343]
[1754849165012,0.002,4231.0,4230.9,6.77600343]
[1754849166439,0.002,4231.0,4230.9,3.18400343]
[1754849166640,0.002,4231.0,4230.9,10.69900343]
[1754849167538,0.002,4231.0,4230.9,6.08937043]
[1754849167742,0.9157,4231.0,4230.9,0.1184]
[1754849168169,0.9157,4231.0,4230.9,3.7144]
[1754849168985,3.27920744,4231.0,4230.9,0.1184]
[1754849171674,7.42520744,4231.0,4230.9,0.1184]
[1754849171850,2.36412208,4229.9,4229.8,0.001]
[1754849172250,3.27782208,4229.9,4229.8,0.1194]
[1754849172579,4.20170791,4229.9,4229.8,0.001]
[1754849183390,3.28800791,4229.9,4229.8,0.001]
[1754849183591,4.19610791,4229.9,4229.8,0.001]
[1754849184185,7.79010791,4229.9,4229.8,0.001]
[1754849185088,5.95812208,4229.9,4229.8,0.001]
[1754849185774,3.594,4229.9,4229.8,0.001]
[1754849186869,3.594,4229.9,4229.8,0.5709]
[1754849187574,3.594,4229.9,4229.8,0.1194]
[1754849191009,5.95812208,4229.9,4229.8,0.1194]
[1754849191417,3.594,4229.9,4229.8,0.1194]
[1754849192307,5.95812208,4229.9,4229.8,0.1194]
[1754849193794,3.594,4229.9,4229.8,0.1194]
[1754849194181,5.95812208,4229.9,4229.8,0.1194]
[1754849195615,3.594,4229.9,4229.8,0.1194]
[1754849195782,3.594,4229.9,4229.8,0.5709]
[1754849196197,3.594,4229.9,4229.8,1.0295]
[1754849196685,3.594,4229.9,4229.8,0.5709]
[1754849197104,2.36377097,4230.6,4229.9,2.36411067]
[1754849197305,3.592,4230.5,4229.8,0.1194]
[1754849197517,2.36396876,4230.2,4229.8,0.001]
[1754849197684,3.592,4230.1,4229.8,0.001]
[1754849198084,3.592,4230.1,4230.0,0.1184]
[1754849199896,5.14034153,4230.1,4229.8,0.001]
[1754849200226,0.9081,4230.0,4229.8,0.001]
[1754849200430,3.592,4229.9,4229.8,0.001]
[1754849200626,4.5001,4229.9,4229.8,0.001]
[1754849200832,7.39009623,4229.9,4229.8,0.001]
[1754849201831,3.592,4229.9,4229.8,0.001]
[1754849202132,5.95612208,4229.9,4229.8,0.001]
[1754849202345,6.86422208,4229.9,4229.8,0.001]
[1754849207633,5.95612208,4229.9,4229.8,0.001]
[1754849208829,5.95612208,4229.9,4229.8,0.1194]
[1754849209641,3.592,4229.9,4229.8,0.1194]
[1754849209854,3.592,4229.9,4229.8,1.0362]
[1754849212657,3.593,4230.1,4229.8,1.0362]
[1754849212967,2.36410949,4230.0,4229.8,0.1194]
[1754849213747,2.36407091,4230.0,4229.8,0.1194]
[1754849214520,5.95702425,4230.1,4229.8,0.1194]
[1754849215757,3.593,4230.1,4229.8,0.1194]
[1754849216835,5.95701776,4230.1,4229.8,0.1194]
[1754849217956,2.36406892,4230.0,4229.8,0.1194]
[1754849218736,5.95701824,4230.1,4229.8,0.1194]
[1754849220130,3.593,4230.1,4229.8,0.1194]
[1754849220960,5.95701881,4230.1,4229.8,0.1194]
[1754849221260,5.95701881,4230.1,4229.8,0.5523]
[1754849222857,3.593,4230.1,4229.8,0.5523]
[1754849223056,3.592,4230.4,4229.9,3.28092208]
[1754849223268,3.592,4230.4,4230.0,0.9168]
[1754849223561,3.592,4230.4,4230.3,0.1184]
[1754849224058,3.592,4230.4,4230.3,1.0352]
[1754849224930,3.98788945,4230.7,4230.3,1.0352]
[1754849225122,3.98788945,4230.7,4230.4,0.4329]
[1754849225326,3.98788945,4230.7,4230.6,0.1184]
[1754849225526,3.93788945,4230.7,4230.6,0.5513]
[1754849226164,3.93788945,4230.7,4230.6,1.0352]
[1754849226931,0.002,4231.0,4230.6,1.0352]
[1754849226932,0.002,4231.0,4230.6,3.73883337]
[1754849227261,0.002,4231.0,4230.9,0.1184]
[1754849227430,0.002,4231.0,4230.9,2.4819633]
[1754849227630,0.002,4231.0,4230.9,3.3987633]
[1754849230363,0.002,4231.0,4230.9,1.0352]
[1754849230572,0.002,4231.0,4230.9,3.77263459]
[1754849231262,0.002,4231.0,4230.9,0.92517129]
[1754849231481,4.4933,4231.0,4230.9,0.1184]
[1754849231642,3.594,4231.0,4230.9,0.1184]
[1754849232869,4.0366,4231.0,4230.9,0.1184]
[1754849233462,3.594,4231.0,4230.9,0.1184]
[1754849233660,3.594,4231.0,4230.9,0.5513]
[1754849233846,0.002,4231.0,4230.9,0.5513]
[1754849234051,0.002,4231.0,4230.9,0.1184]
[1754849234539,0.4587,4231.0,4230.9,0.1184]
[1754849234744,7.49752272,4231.0,4230.9,0.1184]
[1754849234941,7.49752272,4231.0,4229.8,0.001]
[1754849234942,5.13401528,4231.0,4229.8,0.001]
[1754849235262,2.36378678,4230.5,4230.4,0.1184]
[1754849235843,3.26308678,4230.5,4230.4,0.1184]
[1754849236668,2.36378678,4230.5,4230.4,0.1184]
[1754849238574,3.28298678,4230.5,4230.4,0.1184]
[1754849239579,2.36378678,4230.5,4230.4,0.1184]
[1754849242059,3.28298678,4230.5,4230.4,0.1184]
[1754849244751,2.36378678,4230.5,4230.4,0.1184]
[1754849245474,3.28298678,4230.5,4230.4,0.1184]
[1754849248983,2.36378678,4230.5,4230.4,0.1184]
[1754849250691,3.28298678,4230.5,4230.4,0.1184]
[1754849250888,3.28755372,4230.5,4230.4,0.1184]
[1754849251060,4.20675372,4230.5,4230.4,0.1184]
[1754849253482,3.28298678,4230.5,4230.4,0.1184]
[1754849256785,2.36378678,4230.5,4230.4,0.1184]
[1754849257400,2.80038678,4230.5,4230.4,0.1184]
[1754849257694,2.36378678,4230.5,4230.4,0.1184]
[1754849257876,3.28298678,4230.5,4230.4,0.1184]
[1754849258598,2.36378678,4230.5,4230.4,0.1184]
[1754849259164,3.28298678,4230.5,4230.4,0.1184]
[1754849263306,2.36378678,4230.5,4230.4,0.1184]
[1754849266506,2.80038678,4230.5,4230.4,0.1184]
[1754849266712,3.28298678,4230.5,4230.4,0.1184]
[1754849268680,2.36378678,4230.5,4230.4,0.1184]
[1754849269123,2.36406619,4230.0,4229.9,0.001]
[1754849269315,6.07346619,4230.0,4229.9,0.001]
[1754849269489,6.58264059,4230.0,4229.9,0.001]
[1754849269689,7.55564059,4230.0,4229.9,0.001]
[1754849270005,8.54760402,4230.0,4229.9,0.001]
[1754849271484,8.03842962,4230.0,4229.9,0.001]
[1754849274615,2.48246619,4230.0,4229.9,0.001]
[1754849274793,3.591,4230.1,4229.9,1.0084]
[1754849274992,5.9550103,4230.1,4230.0,0.889]
[1754849275313,3.591,4230.1,4230.0,1.0074]
[1754849275813,5.9550103,4230.1,4230.0,1.0074]
[1754849276014,3.591,4230.1,4230.0,1.0074]
[1754849277387,3.591,4230.2,4230.0,1.0074]
[1754849277712,3.591,4230.2,4230.0,0.1184]
[1754849277920,3.591,4230.2,4230.1,0.889]
[1754849280638,2.36369729,4230.7,4230.1,0.889]
[1754849280846,0.002,4231.0,4230.4,2.36381374]
[1754849280996,3.591,4230.9,4230.5,0.889]
[1754849281197,0.002,4231.0,4230.9,2.4819633]
[1754849281641,0.002,4231.0,4230.9,3.3709633]
[1754849282908,0.002,4231.0,4230.9,6.3709633]
[1754849288435,0.002,4231.0,4230.9,10.5109633]
[1754849288631,0.002,4231.0,4230.9,11.80788822]
[1754849291080,0.002,4231.0,4230.9,6.77888822]
[1754849291283,0.002,4231.0,4230.9,10.79798822]
[1754849291434,0.002,4231.0,4230.9,11.25788822]
[1754849291961,0.002,4231.0,4230.9,6.77888822]
[1754849292137,0.002,4231.0,4230.9,9.0739633]
[1754849294075,0.002,4231.0,4230.9,0.1184]
[1754849294486,0.002,4231.0,4230.9,3.7104]
[1754849295040,0.002,4231.0,4230.9,0.1184]
[1754849295241,0.002,4231.0,4230.9,3.7104]
[1754849296248,0.975,4231.0,4230.9,3.7094]
[1754849298768,0.002,4231.0,4230.9,3.7094]
[1754849305604,3.60100319,4231.0,4230.9,0.1184]
[1754849305898,3.60100319,4231.0,4229.9,0.001]
[1754849305899,1.23749575,4231.0,4229.9,0.001]
[1754849306200,2.36406619,4230.0,4229.9,0.001]
[1754849306825,3.27166619,4230.0,4229.9,0.001]
[1754849307100,7.54563016,4230.0,4229.9,0.001]
[1754849308823,7.42723016,4230.0,4229.9,0.001]
[1754849309215,7.60355963,4230.0,4229.9,0.001]
[1754849310210,7.61155963,4230.0,4229.9,0.001]
[1754849310409,7.04799566,4230.0,4229.9,0.001]
[1754849310611,3.77632947,4230.0,4229.9,0.001]
[1754849311739,6.14039566,4230.0,4229.9,0.001]
[1754849312031,7.04799566,4230.0,4229.9,0.001]
[1754849312331,4.68392947,4230.0,4229.9,0.001]
[1754849312534,3.77632947,4230.0,4229.9,0.001]
[1754849313013,0.17632947,4230.0,4229.9,0.001]
[1754849313209,2.3640228,4230.1,4229.9,0.001]
[1754849313609,2.3640228,4230.1,4230.0,0.1184]
[1754849314043,3.2716228,4230.1,4230.0,0.1184]
[1754849314238,0.9076,4230.1,4230.0,0.1184]
[1754849314535,0.9076,4230.1,4229.8,0.001]
[1754849314704,3.6,4230.3,4229.8,0.001]
[1754849315133,3.27140007,4230.5,4229.8,0.001]
[1754849315367,5.96274998,4230.6,4229.9,2.89210239]
[1754849315542,5.96274998,4230.6,4229.9,0.9353]
[1754849315746,5.96274998,4230.6,4229.9,3.29941879]
[1754849316745,3.599,4230.6,4230.0,2.81231463]
[1754849316950,4.0416,4230.6,4230.0,0.56644374]
[1754849317153,0.9076,4230.5,4229.8,0.001]
[1754849317363,2.36384266,4230.4,4229.8,0.001]
[1754849317543,2.36397303,4230.2,4229.8,0.001]
[1754849317741,3.27151569,4230.3,4229.8,0.001]
[1754849317949,0.9076,4230.1,4229.8,0.001]
[1754849318851,0.465,4230.1,4229.8,0.001]
[1754849319031,2.36393823,4230.3,4229.8,0.001]
[1754849319228,0.4426,4230.2,4229.8,0.001]
[1754849319445,0.9076,4230.2,4229.8,0.001]
[1754849320367,2.36385808,4230.4,4229.8,0.001]
[1754849320568,3.77885112,4230.6,4229.8,0.001]
[1754849320774,6.14262087,4230.6,4229.9,2.36412208]
[1754849320976,6.14262087,4230.6,4229.8,2.81346358]
[1754849321635,6.14262087,4230.6,4229.9,2.36410653]
[1754849321835,3.77885112,4230.6,4229.8,0.4493]
[1754849322069,4.24385112,4230.6,4229.8,0.4493]
[1754849322265,2.36384079,4230.5,4229.8,0.4493]
[1754849322462,2.36384079,4230.5,4229.8,0.001]
[1754849322463,2.36391364,4230.3,4229.8,0.001]
[1754849322639,2.36385273,4230.4,4229.8,0.001]
[1754849322840,0.9076,4230.3,4229.8,2.36517411]
[1754849323766,0.9076,4230.3,4229.8,0.001]
[1754849324641,0.9076,4230.2,4229.8,0.001]
[1754849324842,3.27155837,4230.2,4229.8,0.001]
[1754849325151,0.9076,4230.1,4229.8,0.001]
[1754849325551,3.27162347,4230.1,4229.8,0.001]
[1754849325873,0.9076,4230.0,4229.8,0.001]
[1754849326383,0.4426,4229.9,4229.8,0.001]
[1754849326673,0.9076,4229.9,4229.8,0.001]
[1754849326972,2.8065676,4230.2,4229.8,0.001]
[1754849327141,2.3639676,4230.2,4229.8,0.001]
[1754849327342,3.27162782,4230.1,4229.8,0.001]
[1754849327553,0.9076,4230.1,4229.8,0.001]
[1754849327880,0.9031,4230.1,4229.8,0.001]
[1754849328258,3.26712547,4230.1,4229.8,0.001]
[1754849328683,0.9031,4230.1,4229.8,0.001]
[1754849329573,2.36395734,4230.2,4229.8,0.001]
[1754849329778,2.36384266,4230.4,4229.8,0.001]
[1754849329982,2.36390079,4230.3,4229.8,0.001]
[1754849330344,0.9031,4230.3,4229.8,0.001]
[1754849330543,3.77885112,4230.6,4229.9,0.439]
[1754849331175,2.36388157,4230.4,4229.8,0.001]
[1754849331783,2.36380547,4230.5,4229.8,2.36517346]
[1754849331962,2.36385307,4230.4,4229.8,0.001]
[1754849335380,2.36380555,4230.5,4229.8,2.36517121]
[1754849335560,2.36385173,4230.4,4229.8,0.001]
[1754849335982,2.80889221,4230.5,4229.8,2.80415788]
[1754849336379,2.36386031,4230.4,4229.8,0.44]
[1754849336694,2.36391437,4230.3,4229.8,0.001]
[1754849337288,0.9031,4230.2,4229.8,0.001]
[1754849339493,0.458,4230.2,4229.8,2.36517296]
[1754849339696,6.14260082,4230.6,4229.9,2.36411823]
[1754849339896,0.17985112,4230.6,4230.1,2.36396782]
[1754849340072,3.595,4230.9,4230.2,0.439]
[1754849340279,2.36363213,4230.8,4230.2,2.80295097]
[1754849340474,0.4451,4230.8,4229.9,0.9096]
[1754849340772,3.26672637,4230.8,4230.0,2.36402437]
[1754849340979,3.26672637,4230.8,4230.1,2.36399982]
[1754849341999,2.36371497,4230.7,4229.9,4.41117242]
[1754849342186,2.80881497,4230.7,4229.9,4.41117242]
[1754849342593,2.80881497,4230.7,4230.1,2.36400829]
[1754849342594,0.4451,4230.7,4230.1,2.36400829]
[1754849342784,2.80878488,4230.7,4230.0,2.3640548]
[1754849343392,0.4451,4230.7,4230.1,2.36400353]
[1754849343803,0.6228012,4230.7,4230.1,2.36400353]
[1754849344398,0.6228012,4230.7,4229.9,0.37917242]
[1754849344603,0.1777012,4230.7,4230.2,2.36391713]
[1754849344896,0.1777012,4230.7,4230.1,0.439]
[1754849344897,0.002,4230.9,4230.6,2.36369035]
[1754849345198,0.002,4230.9,4230.7,0.439]
[1754849345428,0.002,4230.9,4230.7,2.80266668]
[1754849345836,0.002,4230.9,4230.8,2.36361917]
[1754849346033,0.002,4230.9,4230.8,7.19254109]
[1754849346336,0.002,4230.9,4230.8,10.19254109]
[1754849359645,0.002,4230.9,4230.8,10.74254109]
[1754849366062,1e-08,4230.9,4230.8,10.86094109]
[1754849367601,1e-08,4231.1,4231.0,5.91350744]
[1754849367761,1e-08,4231.1,4231.0,11.12594671]
[1754849368299,0.002,4231.4,4231.1,3.55]
[1754849368466,0.002,4231.4,4231.3,5.91333987]
[1754849368668,0.002,4231.4,4231.3,6.03173987]
[1754849368867,0.002,4231.4,4231.3,6.92283987]
[1754849369204,0.002,4231.4,4231.3,8.74871503]
[1754849371512,1e-08,4231.4,4231.3,8.74871503]
[1754849371723,1e-08,4231.5,4231.4,5.91328401]
[1754849371897,1e-08,4231.5,4231.4,10.39438401]
[1754849372206,1e-08,4231.6,4231.5,5.36322816]
[1754849372415,1e-08,4231.6,4231.5,8.02451689]
[1754849373590,0.4704,4232.6,4231.5,8.02451689]
[1754849373591,0.4472,4233.1,4232.4,2.91272564]
[1754849373774,0.4472,4233.1,4232.4,9.50172564]
[1754849373979,0.4472,4233.1,4232.4,10.39282564]
[1754849374208,1e-08,4232.5,4232.4,10.39282564]
[1754849374413,1e-08,4232.5,4232.4,11.07137142]
[1754849375113,1e-08,4232.5,4232.4,11.78075942]
[1754849376806,1e-08,4232.5,4232.4,7.30065942]
[1754849377007,1e-08,4232.5,4232.4,10.88965942]
[1754849377717,0.00200001,4232.5,4232.4,11.78075942]
[1754849378040,1e-08,4232.5,4232.4,11.78075942]
[1754849379724,1e-08,4232.5,4232.4,8.19175942]
[1754849379926,1e-08,4232.5,4232.4,10.88965942]
[1754849380310,1e-08,4232.5,4232.4,6.75065942]
[1754849380540,0.91760001,4232.5,4232.4,10.33965942]
[1754849381439,0.91760001,4232.5,4232.4,9.78151364]
[1754849381736,1e-08,4232.5,4232.4,9.78151364]
[1754849383352,1e-08,4232.5,4232.4,10.33151364]
[1754849383660,1e-08,4232.5,4232.4,11.22261364]
[1754849387134,1e-08,4232.5,4232.4,7.63161364]